bitfinex-derivatives/quotes_ETHF0:USTF0_20250804
["timestamp","ask_amount","ask_price","bid_price","bid_amount"]
[1754303750198,19.295,3566.9,3566.7,0.56074]
[1754303750402,19.295,3566.9,3566.6,0.56076]
[1754303750403,0.56075,3566.8,3566.6,0.56076]
[1754303751205,19.85573,3566.9,3566.6,0.56076]
[1754303751594,19.295,3566.9,3566.7,0.56074]
[1754303754496,0.56068,3567.2,3567.0,0.56069]
[1754303754699,19.29,3567.1,3567.0,0.56069]
[1754303755199,0.56068,3567.2,3567.0,0.56069]
[1754303755403,40.385,3567.3,3567.2,0.56067]
[1754303755604,59.674,3567.3,3567.2,0.56067]
[1754303756906,40.385,3567.3,3567.2,0.56067]
[1754303757098,59.673,3567.3,3567.2,0.56067]
[1754303757700,40.385,3567.3,3567.2,0.56067]
[1754303758006,59.673,3567.3,3567.2,0.56067]
[1754303760201,1.0,3568.0,3567.0,1.40177]
[1754303760406,19.41663839,3567.9,3566.3,2.80404]
[1754303760708,0.56059,3567.8,3567.7,0.56059]
[1754303760903,19.84658,3567.9,3567.7,0.56059]
[1754303761409,1.0,3568.0,3567.9,0.56056]
[1754303761710,20.285,3568.0,3567.9,0.56056]
[1754303762507,1.0,3568.0,3567.9,0.56056]
[1754303764905,40.93432,3569.5,3567.7,2.80297]
[1754303765110,19.9866144,3569.4,3569.3,0.56034]
[1754303765308,19.282,3569.4,3569.3,0.56034]
[1754303767312,19.282,3569.4,3569.2,0.56035]
[1754303767509,19.282,3569.4,3568.3,1.40126]
[1754303767813,0.56042,3568.9,3567.6,0.21477696]
[1754303768111,0.56045,3568.7,3567.7,1.40149]
[1754303768311,0.56044,3568.7,3567.9,1.40142]
[1754303769012,0.56044,3568.7,3568.0,1.40138]
[1754303769215,0.56044,3568.7,3568.5,0.56046]
[1754303769515,0.56044,3568.7,3568.4,0.56048]
[1754303770015,0.56049,3568.4,3568.3,0.5605]
[1754303770210,19.276,3568.4,3568.0,0.56054]
[1754303770404,19.276,3568.4,3567.9,0.56055]
[1754303770609,0.56053,3568.2,3568.0,0.56054]
[1754303770912,40.36,3569.2,3569.0,0.56038]
[1754303771109,19.275,3569.3,3569.2,0.56035]
[1754303773118,20.67587,3569.3,3567.7,1.40147]
[1754303773318,0.56042,3568.9,3568.7,0.56042]
[1754303773514,0.56044,3568.7,3568.6,0.56045]
[1754303773714,0.56044,3568.7,3568.5,0.56046]
[1754303773916,0.56047,3568.5,3568.2,0.56051]
[1754303774317,0.56051,3568.3,3568.1,0.56052]
[1754303774614,0.56057,3567.9,3567.7,0.56059]
[1754303774824,0.56061,3567.7,3567.5,0.56062]
[1754303775017,19.274,3567.9,3567.0,1.40177]
[1754303775322,0.56061,3567.7,3567.0,1.40177]
[1754303775522,0.56062,3567.6,3567.4,0.56063]
[1754303775721,0.5606,3567.7,3567.5,0.56062]
[1754303775921,19.274,3567.9,3567.2,0.56066]
[1754303776222,1.40148,3567.8,3566.4,1.40198]
[1754303776621,0.56067,3567.3,3567.1,0.56068]
[1754303776823,19.83367,3567.3,3567.1,0.56068]
[1754303777026,0.56067,3567.2,3566.2,1.40208]
[1754303777322,0.5607,3567.1,3566.9,0.56071]
[1754303777519,0.5607,3567.1,3566.8,0.56073]
[1754303778021,19.273,3567.3,3566.2,1.40208]
[1754303778219,0.56074,3566.8,3566.6,0.56076]
[1754303778421,19.273,3567.3,3566.7,0.56074]
[1754303779025,12.83374,3567.3,3566.1,0.56084]
[1754303779419,12.83374,3567.3,3565.7,1.40227]
[1754303779420,0.56073,3566.9,3565.8,1.40222]
[1754303779619,0.56073,3566.9,3565.9,1.4022]
[1754303780019,0.56073,3566.9,3566.4,0.56079]
[1754303780219,0.56075,3566.8,3566.3,0.56081]
[1754303780626,0.56075,3566.8,3566.2,0.56082]
[1754303780824,12.83374,3567.3,3566.2,0.56082]
[1754303781027,0.56075,3566.8,3566.3,0.5608]
[1754303781229,0.56076,3566.7,3566.2,0.56082]
[1754303781628,0.56078,3566.6,3566.2,0.56082]
[1754303781833,0.56079,3566.5,3566.0,0.56085]
[1754303782130,0.56079,3566.5,3566.1,0.56084]
[1754303782426,1.40169,3567.2,3566.2,0.56083]
[1754303782427,0.56076,3566.7,3566.2,0.56083]
[1754303782626,1.40169,3567.2,3566.2,0.56083]
[1754303782627,0.56078,3566.6,3566.2,0.56082]
[1754303783221,0.56078,3566.6,3566.1,0.56084]
[1754303783418,0.5608,3566.5,3566.1,0.56084]
[1754303783725,1.40209,3566.2,3565.1,1.99724694]
[1754303783919,1.40213,3566.1,3564.7,1.99724694]
[1754303784128,0.56097,3565.4,3564.8,0.56104]
[1754303784321,0.56095,3565.5,3564.9,1.57085183]
[1754303784731,0.56093,3565.6,3565.2,0.56099]
[1754303784934,1.40213,3566.1,3564.9,1.57086183]
[1754303784935,0.56098,3565.3,3564.9,1.57086183]
[1754303785531,1.40221,3565.9,3564.9,1.00983183]
[1754303785832,0.56102,3565.1,3564.9,1.00983183]
[1754303788825,0.56098,3565.3,3564.9,1.57086183]
[1754303789028,19.281,3565.4,3564.9,1.57086183]
[1754303789331,0.56101,3565.1,3564.9,1.00983183]
[1754303790231,0.56099,3565.2,3564.9,1.00983183]
[1754303790434,0.56099,3565.2,3564.9,1.57086183]
[1754303790729,0.56102,3565.1,3564.9,1.00983183]
[1754303791637,19.84502,3565.1,3564.9,1.00983183]
[1754303794135,0.56118,3564.0,3562.2,1.99724694]
[1754303794336,0.56122,3563.8,3563.0,1.40332]
[1754303794530,0.56123,3563.7,3563.4,0.56126]
[1754303794924,0.56123,3563.7,3563.5,0.56124]
[1754303795127,19.286,3563.9,3563.0,1.40332]
[1754303795736,19.8472,3563.9,3563.6,0.56123]
[1754303795933,0.56122,3563.8,3563.5,0.56125]
[1754303796134,0.56125,3563.6,3563.3,0.56127]
[1754303796635,0.56123,3563.7,3563.5,0.56124]
[1754303796826,0.56121,3563.8,3563.5,0.56124]
[1754303797033,19.8472,3563.9,3563.6,0.56123]
[1754303797335,19.8472,3563.9,3563.7,0.56121]
[1754303797539,0.56119,3564.0,3563.8,0.5612]
[1754303797734,19.288,3563.9,3563.7,0.56121]
[1754303798230,0.56116,3564.2,3564.0,0.56118]
[1754303798432,19.288,3564.1,3564.0,0.56118]
[1754303798830,0.56118,3564.0,3563.4,1.40318]
[1754303799031,0.56122,3563.8,3563.6,0.56123]
[1754303799235,0.56124,3563.7,3563.0,1.40334]
[1754303799631,20.69092,3564.1,3563.4,0.56126]
[1754303799832,0.56125,3563.6,3563.4,0.56126]
[1754303801040,0.56122,3563.8,3563.6,0.56123]
[1754303801236,0.56122,3563.8,3563.5,0.56125]
[1754303801532,0.56123,3563.7,3563.5,0.56125]
[1754303801835,0.56122,3563.8,3563.6,0.56122]
[1754303802141,19.288,3564.1,3563.6,0.56122]
[1754303802340,0.5612,3563.9,3563.7,0.56121]
[1754303802840,0.56123,3563.7,3563.6,0.56124]
[1754303803038,0.56123,3563.7,3563.5,0.56125]
[1754303803334,0.56126,3563.5,3563.3,0.56128]
[1754303803937,0.56122,3563.8,3563.0,1.40334]
[1754303804239,0.56124,3563.7,3563.4,0.56126]
[1754303804441,0.56124,3563.7,3563.0,1.40334]
[1754303804442,0.56124,3563.7,3563.3,0.56128]
[1754303804633,0.56124,3563.7,3563.4,0.56126]
[1754303804831,0.56131,3563.2,3562.5,1.40353]
[1754303805140,0.56131,3563.2,3562.9,0.56135]
[1754303805340,0.56133,3563.1,3562.8,0.56136]
[1754303805641,0.56131,3563.2,3562.4,1.40355]
[1754303805847,0.56133,3563.1,3562.4,1.40355]
[1754303806239,0.56131,3563.2,3563.1,0.56131]
[1754303806646,0.56134,3563.0,3562.9,0.56134]
[1754303806944,0.56135,3562.9,3562.7,0.56137]
[1754303807839,19.293,3563.4,3562.9,0.56134]
[1754303808044,0.56133,3563.1,3562.9,0.56134]
[1754303809444,0.56135,3562.9,3562.8,0.56136]
[1754303809635,0.56137,3562.8,3562.3,1.40362]
[1754303810343,0.56134,3563.0,3562.9,0.56135]
[1754303810543,0.56132,3563.2,3563.0,0.56132]
[1754303810743,19.294,3563.1,3563.0,0.56132]
[1754303811038,0.56136,3562.9,3562.4,1.40358]
[1754303811232,1.40335,3563.0,3562.1,1.40366]
[1754303811435,0.5614,3562.6,3562.4,0.56142]
[1754303811639,0.56142,3562.5,3562.0,1.40373]
[1754303811842,0.56136,3562.9,3562.7,0.56138]
[1754303812045,0.56139,3562.7,3562.6,0.56139]
[1754303812232,0.56137,3562.8,3562.7,0.56137]
[1754303812644,0.56136,3562.9,3562.8,0.56136]
[1754303813040,0.56138,3562.8,3562.7,0.56137]
[1754303813236,0.56136,3562.9,3562.8,0.56136]
[1754303813945,0.56134,3563.0,3562.9,0.56134]
[1754303814133,0.56134,3563.0,3562.8,0.56135]
[1754303814335,19.296,3563.0,3562.6,1.4035]
[1754303814938,19.296,3563.0,3562.9,0.56135]
[1754303815941,19.33432612,3563.0,3562.9,0.56135]
[1754303819246,0.03832612,3563.0,3562.9,0.56135]
[1754303820150,0.56135,3562.9,3562.8,0.56136]
[1754303820447,0.56138,3562.8,3562.1,1.4037]
[1754303820750,0.56142,3562.6,3562.5,0.56141]
[1754303820945,0.59974612,3562.6,3562.5,0.56141]
[1754303821252,0.03832612,3562.6,3562.5,0.56141]
[1754303821451,19.33432612,3562.6,3562.5,0.56141]
[1754303821642,19.33432612,3562.6,3562.4,0.56142]
[1754303821843,19.89572612,3562.6,3562.4,0.56142]
[1754303822150,0.03832612,3562.5,3562.4,0.56142]
[1754303822742,19.33432612,3562.5,3562.4,0.56142]
[1754303824250,19.33532612,3562.5,3562.4,0.56142]
[1754303824446,0.03832612,3562.5,3562.4,0.56142]
[1754303826745,40.412,3563.3,3562.0,2.80748]
[1754303826746,40.412,3563.3,3562.0,1.40374]
[1754303826951,40.412,3563.3,3563.2,0.5613]
[1754303827153,0.70847244,3563.3,3563.2,0.5613]
[1754303827354,19.297,3563.7,3563.6,0.56124]
[1754303827658,20.005631,3563.7,3563.6,0.56124]
[1754303828550,0.708631,3563.7,3563.6,0.56124]
[1754303829354,0.708631,3563.8,3563.6,0.56124]
[1754303829853,0.708631,3563.7,3563.0,1.40334]
[1754303830048,0.56127,3563.5,3563.4,0.56126]
[1754303830259,0.56127,3563.4,3563.2,0.56129]
[1754303830551,20.004631,3563.4,3563.2,0.56129]
[1754303830751,0.708631,3563.3,3563.2,0.56129]
[1754303830946,19.296,3563.3,3563.2,0.56129]
[1754303831149,20.004631,3563.3,3563.2,0.56129]
[1754303831351,19.296,3563.3,3563.2,0.56129]
[1754303833755,1.00728844,3564.1,3563.7,0.56121]
[1754303833951,20.5596436,3564.0,3563.9,0.56119]
[1754303834152,0.56119,3563.9,3563.8,0.5612]
[1754303834347,0.7024636,3563.9,3563.8,0.5612]
[1754303834656,19.9974636,3563.9,3563.8,0.5612]
[1754303835156,0.7024636,3563.9,3563.8,0.5612]
[1754303835457,19.8562,3563.9,3563.7,0.56121]
[1754303835649,0.5612,3563.9,3563.7,0.56121]
[1754303835859,19.295,3563.8,3563.7,0.56121]
[1754303836855,0.56122,3563.7,3563.6,0.56123]
[1754303837057,19.295,3563.8,3562.9,1.99724694]
[1754303837058,19.295,3563.8,3563.5,0.56125]
[1754303837355,0.56127,3563.4,3563.3,0.56128]
[1754303837556,0.56127,3563.5,3563.4,0.56127]
[1754303839057,19.295,3563.8,3563.1,1.4033]
[1754303839257,19.295,3563.8,3563.2,1.40327]
[1754303839461,40.415,3564.3,3563.4,1.40319]
[1754303839755,19.99631375,3564.2,3563.9,0.56119]
[1754303839947,0.70231375,3564.1,3563.9,0.56119]
[1754303840155,0.5612,3563.9,3563.8,0.56121]
[1754303840659,19.294,3564.2,3563.7,0.56121]
[1754303840852,0.56122,3563.8,3563.3,1.40323]
[1754303841161,19.294,3563.7,3563.6,0.56124]
[1754303841457,0.56128,3563.4,3563.0,1.99724694]
[1754303841657,0.56128,3563.4,3562.8,1.40342]
[1754303841658,19.294,3563.3,3563.1,0.56131]
[1754303841959,0.56136,3562.9,3562.8,0.56137]
[1754303842160,19.294,3563.3,3562.8,0.56137]
[1754303842161,0.56134,3563.0,3562.8,0.56137]
[1754303842759,0.56133,3563.1,3562.9,0.56133]
[1754303843456,0.56135,3562.9,3562.8,0.56136]
[1754303843656,0.56135,3563.0,3562.8,0.56136]
[1754303845858,0.56137,3562.8,3562.7,0.56137]
[1754303846055,19.85537,3562.8,3562.7,0.56137]
[1754303846358,19.85537,3562.8,3562.6,0.56139]
[1754303846960,19.294,3562.8,3562.6,0.56139]
[1754303847861,0.56136,3562.9,3562.8,0.56137]
[1754303848062,19.295,3562.9,3562.8,0.56137]
[1754303848255,19.85636,3562.9,3562.7,0.56138]
[1754303848561,0.56139,3562.7,3562.6,0.56139]
[1754303848864,19.295,3562.9,3562.6,0.56139]
[1754303848865,0.56138,3562.8,3562.6,0.56139]
[1754303849057,0.5614,3562.6,3562.5,0.56141]
[1754303849359,0.5614,3562.6,3562.0,3.40097694]
[1754303849752,19.295,3562.9,3562.4,0.56142]
[1754303849954,0.56143,3562.5,3562.3,0.56144]
[1754303850149,1.40338,3563.0,3561.9,3.00792929]
[1754303850150,19.295,3562.4,3561.9,3.00792929]
[1754303850363,19.85646,3562.3,3562.1,0.56146]
[1754303850954,19.295,3562.3,3562.1,0.56146]
[1754303851566,19.85645,3562.3,3562.1,0.56146]
[1754303852363,0.56147,3562.2,3562.0,0.56148]
[1754303853156,0.56149,3562.0,3561.9,1.01068235]
[1754303853359,19.85749,3562.0,3561.9,1.01068235]
[1754303853661,20.55579833,3562.0,3561.9,1.01068235]
[1754303854158,19.85749,3562.0,3561.9,1.01068235]
[1754303854364,19.85749,3562.0,3560.3,1.99724694]
[1754303854365,0.56169,3560.8,3560.1,1.99724694]
[1754303854568,19.337,3560.7,3560.4,1.99724694]
[1754303854757,19.337,3560.7,3560.0,1.99724694]
[1754303854960,19.337,3560.7,3560.3,0.56175]
[1754303855263,19.337,3560.7,3560.4,0.56173]
[1754303855967,19.337,3560.7,3560.6,0.56171]
[1754303856163,19.337,3560.7,3560.5,0.56172]
[1754303857763,0.5616,3561.4,3559.3,1.99724694]
[1754303857964,19.358,3561.3,3561.1,0.56162]
[1754303858159,19.358,3561.3,3559.3,4.80685694]
[1754303858368,40.419,3561.5,3559.7,2.80928]
[1754303858564,19.357,3561.4,3559.7,2.80928]
[1754303858766,0.56161,3561.3,3561.1,0.56162]
[1754303858966,19.9186,3561.4,3561.1,0.56162]
[1754303859167,0.56161,3561.3,3560.9,0.56166]
[1754303859565,19.9186,3561.4,3561.1,0.56162]
[1754303859764,40.419,3561.5,3561.3,0.56159]
[1754303860066,19.357,3561.4,3561.3,0.56159]
[1754303860371,19.9186,3561.4,3561.1,0.56163]
[1754303860571,19.357,3561.4,3560.4,1.40433]
[1754303860875,19.354,3561.3,3559.7,4.80652694]
[1754303861370,0.5616,3561.4,3561.2,0.5616]
[1754303861565,19.357,3561.3,3561.2,0.5616]
[1754303861766,19.91861,3561.3,3561.1,0.56163]
[1754303861967,40.98058,3561.5,3561.3,0.5616]
[1754303862268,40.419,3561.5,3561.3,0.5616]
[1754303862571,19.357,3561.4,3561.3,0.5616]
[1754303862966,1.40364,3562.3,3559.9,1.99724694]
[1754303862967,0.5615,3562.0,3561.8,0.56151]
[1754303863170,0.56153,3561.8,3561.6,0.56155]
[1754303863370,0.56156,3561.6,3561.5,0.56157]
[1754303863771,0.56155,3561.7,3561.5,0.56157]
[1754303864073,19.92552,3561.9,3561.7,0.56153]
[1754303864370,19.92551,3561.9,3561.7,0.56153]
[1754303864670,0.56154,3561.8,3561.6,0.56155]
[1754303865774,19.364,3561.9,3561.7,0.56153]
[1754303865976,0.5615,3562.0,3561.8,0.56151]
[1754303866274,19.362,3561.9,3561.8,0.56151]
[1754303866775,0.56148,3562.1,3561.9,0.56149]
[1754303867072,0.56152,3561.9,3561.7,0.56153]
[1754303867272,19.9235,3562.0,3561.8,0.56151]
[1754303867571,0.56146,3562.3,3562.1,0.56147]
[1754303867769,0.56144,3562.4,3562.2,0.56145]
[1754303868274,19.363,3562.3,3562.2,0.56145]
[1754303868671,40.434,3562.5,3561.9,1.40378]
[1754303868868,19.92444,3562.4,3562.3,0.56143]
[1754303869270,19.363,3562.4,3562.3,0.56143]
[1754303870375,19.92444,3562.4,3562.2,0.56145]
[1754303871575,19.363,3562.4,3562.2,0.56145]
[1754303872472,40.434,3562.5,3562.4,0.56143]
[1754303872975,19.356,3562.3,3561.9,0.5615]
[1754303873178,0.56148,3562.1,3561.9,0.5615]
[1754303873475,19.356,3562.0,3561.7,0.56153]
[1754303873675,19.364,3561.9,3561.7,0.56153]
[1754303873883,0.56157,3561.5,3560.9,1.40417]
[1754303874069,19.92359,3561.4,3561.1,0.56163]
[1754303874269,0.56162,3561.2,3561.0,0.56164]
[1754303874470,19.362,3561.1,3560.3,1.99724694]
[1754303874680,19.362,3561.1,3560.6,0.5617]
[1754303874873,0.56169,3560.8,3560.6,0.5617]
[1754303875080,0.56172,3560.6,3560.4,0.56174]
[1754303875476,19.9357,3560.7,3560.4,0.56174]
[1754303875686,19.374,3560.7,3560.5,0.56172]
[1754303876176,0.56174,3560.5,3559.6,1.99724694]
[1754303876374,19.93571,3560.7,3559.8,1.40461]
[1754303876679,0.56173,3560.6,3559.9,1.40457]
[1754303876881,0.56173,3560.6,3560.4,0.56173]
[1754303877278,19.93571,3560.7,3560.5,0.56172]
[1754303877477,19.374,3560.7,3560.5,0.56172]
[1754303877777,19.93571,3560.7,3560.5,0.56172]
[1754303877977,0.56174,3560.5,3560.3,0.56175]
[1754303878480,19.374,3560.7,3559.4,1.99724694]
[1754303878481,19.374,3560.7,3560.6,0.56171]
[1754303879879,0.56167,3560.9,3560.7,0.5617]
[1754303880083,19.92371,3560.7,3560.5,0.56172]
[1754303880283,0.56172,3560.6,3560.4,0.56173]
[1754303880582,19.362,3560.7,3560.5,0.56172]
[1754303881783,19.366,3560.6,3560.5,0.56173]
[1754303881980,1.40384,3561.8,3561.3,0.56159]
[1754303882173,1.40374,3562.1,3560.0,1.40449]
[1754303882174,0.56156,3561.6,3561.4,0.56158]
[1754303882381,0.7082782,3561.6,3561.4,0.56158]
[1754303882578,0.56158,3561.5,3561.3,0.5616]
[1754303883180,0.1467182,3561.6,3560.2,1.99724694]
[1754303883378,0.56162,3561.2,3560.5,1.40433]
[1754303883572,19.404,3561.1,3560.5,1.40433]
[1754303883776,0.56165,3561.0,3560.9,0.56165]
[1754303884081,0.56165,3561.0,3560.6,0.5617]
[1754303884383,0.56172,3560.6,3560.3,0.56175]
[1754303884776,19.403,3560.6,3560.3,0.56175]
[1754303884985,19.403,3560.6,3560.4,0.56174]
[1754303887487,19.96472,3560.6,3560.4,0.56174]
[1754303887688,19.403,3560.6,3560.4,0.56174]
[1754303888684,0.56175,3560.4,3559.9,1.99724694]
[1754303888883,0.56176,3560.3,3560.2,0.56177]
[1754303889687,20.80729,3560.6,3559.6,1.99724694]
[1754303889886,20.80729,3560.6,3559.5,1.99724694]
[1754303890187,1.40438,3560.4,3559.1,1.99724694]
[1754303890481,19.403,3560.6,3559.0,1.40491]
[1754303890482,0.70630044,3560.5,3559.0,1.40491]
[1754303890686,0.56188,3559.6,3559.5,0.56188]
[1754303890881,0.56188,3559.6,3559.4,0.56189]
[1754303891077,19.453,3559.9,3559.0,1.40491]
[1754303891482,0.56189,3559.5,3559.3,0.56192]
[1754303891683,0.56188,3559.6,3559.5,0.56189]
[1754303892387,0.56188,3559.6,3559.0,1.40491]
[1754303892388,0.56186,3559.7,3559.6,0.56186]
[1754303892587,0.56187,3559.7,3559.6,0.56186]
[1754303892789,0.56187,3559.7,3559.5,0.56188]
[1754303893085,0.56183,3559.9,3559.7,0.56185]
[1754303893285,19.461,3559.8,3559.7,0.56185]
[1754303893480,0.56185,3559.7,3559.5,0.56188]
[1754303893876,19.461,3559.8,3559.7,0.56185]
[1754303896493,19.461,3559.8,3559.6,0.56186]
[1754303897186,0.56179,3560.2,3560.0,0.56181]
[1754303897381,19.458,3560.1,3560.0,0.56181]
[1754303897693,0.56181,3560.0,3559.9,0.56181]
[1754303897881,20.0198,3560.1,3559.9,0.56181]
[1754303898186,19.458,3560.0,3559.6,1.40468]
[1754303898390,20.01981,3560.0,3559.9,0.56182]
[1754303898586,19.458,3560.0,3559.9,0.56182]
[1754303899882,19.449,3560.0,3559.9,0.56182]
[1754303900490,0.56182,3559.9,3559.8,0.56183]
[1754303900788,20.01082,3560.0,3559.8,0.56183]
[1754303901487,0.56185,3559.8,3559.6,0.56186]
[1754303902481,0.56189,3559.5,3559.0,1.40491]
[1754303902686,20.00389,3559.5,3559.0,1.40491]
[1754303902992,19.442,3559.5,3559.3,0.5619]
[1754303907401,0.56185,3559.8,3559.7,0.56184]
[1754303907591,19.98585,3559.8,3559.7,0.56184]
[1754303908297,0.56187,3559.7,3559.6,0.56186]
[1754303908697,0.56189,3559.6,3559.5,0.56188]
[1754303908886,0.56186,3559.7,3559.6,0.56185]
[1754303909090,0.56183,3559.9,3559.8,0.56182]
[1754303909291,0.56185,3559.8,3559.7,0.56184]
[1754303909592,19.419,3559.9,3559.1,1.40488]
[1754303909999,0.56189,3559.6,3559.5,0.56188]
[1754303910596,0.56187,3559.7,3559.6,0.56186]
[1754303910798,19.415,3559.7,3559.6,0.56186]
[1754303911798,0.5619,3559.5,3559.4,0.56189]
[1754303912001,0.56191,3559.4,3559.3,0.56191]
[1754303912499,19.415,3559.7,3559.1,1.40488]
[1754303912692,0.56191,3559.4,3559.3,0.56191]
[1754303913198,0.56193,3559.3,3559.2,0.56192]
[1754303913494,0.56197,3559.0,3558.9,1.5735143]
[1754303913697,2.80944,3559.5,3559.0,0.56195]
[1754303913698,0.56195,3559.2,3559.0,0.56195]
[1754303914002,19.43,3559.1,3558.9,1.5735043]
[1754303915694,19.99196,3559.1,3558.9,1.5735043]
[1754303915893,19.43,3559.1,3558.9,1.5735043]
[1754303916803,1.40464,3559.8,3558.9,1.0115343]
[1754303917004,19.42,3559.7,3558.9,1.0115343]
[1754303917203,40.452,3559.9,3559.0,0.56197]
[1754303917399,19.56754368,3559.8,3559.0,0.56197]
[1754303917604,19.419,3559.7,3559.6,0.56187]
[1754303918101,40.452,3559.9,3559.8,0.56184]
[1754303918296,59.869,3559.9,3559.8,0.56184]
[1754303918496,60.01758304,3559.9,3559.8,0.56184]
[1754303918908,0.56184,3559.8,3559.7,0.56184]
[1754303919205,0.71043304,3559.8,3559.6,0.56187]
[1754303919405,19.414,3559.7,3559.6,0.56187]
[1754303919599,19.56264495,3559.7,3559.6,0.56187]
[1754303919799,0.56187,3559.6,3559.1,1.99724694]
[1754303920106,0.56187,3559.6,3559.4,0.56189]
[1754303920307,19.97587,3559.7,3559.6,0.56187]
[1754303920509,20.12455566,3559.7,3559.6,0.56187]
[1754303921409,0.56188,3559.6,3559.5,0.56188]
[1754303921903,19.97587,3559.7,3559.5,0.56188]
[1754303922814,1.00728844,3560.6,3559.2,3.40208694]
[1754303923108,19.413,3560.5,3560.4,0.56174]
[1754303923403,0.85797432,3560.5,3560.4,0.56174]
[1754303923609,19.412,3560.6,3560.4,0.56174]
[1754303923804,3.41836689,3561.9,3560.1,1.40445]
[1754303923805,1.00728844,3561.4,3561.2,0.56162]
[1754303924014,20.14717336,3561.3,3561.1,0.56163]
[1754303924201,0.56163,3561.2,3560.9,0.56165]
[1754303924405,0.56163,3561.2,3560.9,0.56166]
[1754303924604,19.438,3561.3,3560.5,1.99724694]
[1754303924605,0.56166,3561.0,3560.8,0.56167]
[1754303924812,19.437,3560.9,3560.8,0.56167]
[1754303925004,19.58537483,3560.9,3560.8,0.56167]
[1754303925206,0.56175,3560.4,3560.2,2.55901694]
[1754303925405,20.84119,3560.9,3559.9,1.99724694]
[1754303925610,20.84119,3560.9,3559.7,1.40463]
[1754303925611,0.56174,3560.5,3560.3,0.56175]
[1754303925908,19.45,3560.4,3560.3,0.56175]
[1754303926211,20.01176,3560.4,3560.2,0.56177]
[1754303928415,0.56179,3560.1,3559.9,0.56181]
[1754303928615,19.45,3560.4,3559.5,1.99724694]
[1754303928809,0.5618,3560.1,3560.0,0.5618]
[1754303929014,0.56178,3560.2,3559.9,0.56181]
[1754303929707,0.56178,3560.2,3559.4,1.99724694]
[1754303929708,0.56182,3560.0,3559.7,0.56185]
[1754303929907,1.40441,3560.3,3559.3,1.99724694]
[1754303929908,0.56185,3559.8,3559.3,1.99724694]
[1754303930113,0.56185,3559.8,3559.1,1.40485]
[1754303930510,0.56185,3559.8,3559.5,0.56188]
[1754303930710,19.438,3559.9,3559.1,1.40485]
[1754303930910,0.56188,3559.6,3558.9,1.0115343]
[1754303931313,0.5619,3559.5,3559.2,0.56192]
[1754303931617,1.40438,3560.4,3559.1,1.40488]
[1754303931807,0.56183,3559.9,3559.6,0.56186]
[1754303932318,0.14836968,3560.2,3559.1,1.40488]
[1754303932319,0.56181,3560.0,3559.7,0.56185]
[1754303932616,0.56183,3559.9,3559.7,0.56185]
[1754303932810,0.56183,3559.9,3559.6,0.56186]
[1754303933113,1.40449,3560.1,3559.5,0.56188]
[1754303934112,0.56183,3559.9,3559.6,0.56186]
[1754303934313,19.98885,3559.8,3559.6,0.56186]
[1754303934612,0.56188,3559.6,3559.4,0.56189]
[1754303934809,0.56188,3559.6,3559.3,0.56191]
[1754303935112,0.56188,3559.6,3559.4,0.56189]
[1754303936013,0.56186,3559.7,3559.5,0.56187]
[1754303936213,19.427,3559.8,3559.6,0.56186]
[1754303936411,1.40439,3560.4,3559.3,1.4048]
[1754303936611,0.56182,3560.0,3559.8,0.56183]
[1754303937325,0.5618,3560.1,3559.9,0.56182]
[1754303937611,0.5618,3560.1,3559.3,1.4048]
[1754303937612,0.56185,3559.8,3559.3,1.4048]
[1754303937806,19.423,3559.7,3559.3,1.4048]
[1754303938010,19.423,3559.7,3559.6,0.56186]
[1754303939316,0.5619,3559.5,3559.3,0.56191]
[1754303939519,0.56196,3559.1,3558.9,1.5735043]
[1754303939720,19.422,3559.0,3558.9,1.5735043]
[1754303944315,0.56185,3559.8,3559.5,0.56187]
[1754303944513,19.97786,3559.7,3559.5,0.56187]
[1754303944713,19.416,3559.7,3559.5,0.56187]
[1754303946416,19.97786,3559.7,3559.5,0.56187]
[1754303947728,0.56189,3559.5,3559.4,0.56189]
[1754303948924,0.56189,3559.5,3559.1,0.56194]
[1754303949322,0.56188,3559.6,3559.2,0.56193]
[1754303949928,0.5619,3559.5,3559.2,0.56193]
[1754303950129,0.5619,3559.5,3559.1,0.56194]
[1754303950329,0.5619,3559.5,3558.9,1.0115343]
[1754303950530,0.56195,3559.1,3558.9,1.0115343]
[1754303950732,19.4,3559.1,3558.9,1.0115343]
[1754303951324,0.56197,3559.0,3558.9,1.0115343]
[1754303952934,0.56197,3559.0,3558.9,4.3e-06]
[1754303953930,19.95897,3559.0,3558.9,4.3e-06]
[1754303954327,20.8129861,3559.0,3558.9,4.3e-06]
[1754303954529,20.10578898,3559.0,3558.9,4.3e-06]
[1754303954833,0.70878898,3559.0,3558.9,4.3e-06]
[1754303955035,19.95497,3559.0,3558.9,4.3e-06]
[1754303955234,20.10178898,3559.0,3558.9,4.3e-06]
[1754303955729,19.95497,3559.0,3558.9,4.3e-06]
[1754303962737,20.10193015,3559.0,3558.9,4.3e-06]
[1754303962937,19.95497,3559.0,3558.9,4.3e-06]
[1754303963233,20.10192013,3559.0,3558.9,4.3e-06]
[1754303964136,20.81001551,3559.0,3558.9,4.3e-06]
[1754303964739,20.81004095,3559.0,3558.9,4.3e-06]
[1754303966436,20.81004108,3559.0,3558.9,4.3e-06]
[1754303968140,20.8484109,3559.0,3558.9,4.3e-06]
[1754303970237,1.4554109,3559.0,3558.9,4.3e-06]
[1754303970435,20.11531552,3559.0,3558.9,4.3e-06]